[Event "Wijk aan Zee"]
[Site "Wijk aan Zee"]
[Date "2017.01.17"]
[Round "4"]
[White "Harikrishna, Pentala"]
[Black "Karjakin, Sergey"]
[Result "1/2-1/2"]
[ECO "C54"]
[WhiteElo "2766"]
[BlackElo "2785"]
[Annotator "Sagar Shah"]
[PlyCount "60"]
[EventDate "2017.??.??"]
[EventType "tourn"]
[EventCountry "NED"]
[SourceTitle "playchess.com"]
[Source "ChessBase"]
[TimeControl "40/6000+30:20/3000+30:900+30"]

1. e4 {[%emt 0:00:00]} e5 {[%emt 0:00:38]} 2. Nf3 {[%emt 0:00:00]} Nc6 {
[%emt 0:00:05]} 3. Bc4 {[%emt 0:00:00]} Bc5 {[%emt 0:00:08]} 4. O-O {[%emt 0:
00:08]} Nf6 {[%emt 0:00:03]} 5. d3 {[%emt 0:00:10]} O-O {[%emt 0:00:07]} 6. h3
{[%emt 0:00:06]} d6 {[%emt 0:00:20]} 7. c3 {[%emt 0:00:08]} a6 {9 Karjakin
deviates from h6 which he had played in their previous encounter. He also
places his pawn on a6 instead of a5 as he did in Baku.} ({Here's the Baku
Olympiad game for you to have a look.} 7... h6 {283} 8. Re1 {[%emt 0:00:45]} a5
{28 This move has hardly been played before. Usually Black settles for a6
followed by Ba7. This seems like some preparation for the World Championship
Match!} 9. Bb3 {196} Re8 {440} 10. Nbd2 {154} Be6 {[%emt 0:00:42]} 11. Ba4 {88}
Ba7 {565} 12. Nf1 {434} Rb8 {[%emt 0:00:16]} 13. Bb5 {235 Hari makes the
perfect use of the move a5. The b5 square was weakened and he settles his
bishop on that square.} Bd7 {[%emt 0:00:26]} 14. Ng3 {645} Ne7 {[%emt 0:00:32]}
15. Bxd7 {[%emt 0:00:08]} Qxd7 {[%emt 0:00:04]} 16. d4 {[%emt 0:00:44]} Ng6 {
278} 17. Be3 {123} exd4 {68} 18. Bxd4 {[%emt 0:00:17]} Bxd4 {[%emt 0:00:04]}
19. cxd4 {56 White has a harmonius position and should surely stand slightly
better here.} a4 {456} 20. Rc1 {100} d5 {255} 21. e5 {258} Nh7 {[%emt 0:00:02]}
22. Nh2 {279 Look at the knights on the kingside, all four identically placed.
However, the pawn on e5 gives white the space advantage and the chances for an
attack.} Ng5 {143} 23. Nh5 {443} a3 {979} 24. b4 {425} Ne6 {383} 25. Qd2 {913}
Ng5 {417} 26. Ng4 {54 Slowly but surely the pressure is creeping in.} Qf5 $2 {
31 Karjakin blunders!} 27. Nhf6+ $1 {111 The knight cannot be taken as Nxh6
wins the queen!} Kh8 {[%emt 0:00:07]} (27... gxf6 28. Nxh6+ $18) 28. Nxe8 {
[%emt 0:00:32]} Rxe8 {[%emt 0:00:02]} 29. Rxc7 {117 The rest as they say is
matter of technique, which Harikrishna shows in good measure!} Nf4 {[%emt 0:00:
54]} 30. Qe3 {470} Nge6 {[%emt 0:00:55]} 31. Rc3 {[%emt 0:00:42]} Qg6 {104} 32.
Qg3 {77} Ra8 {[%emt 0:00:08]} 33. Kh2 {122} h5 {170} 34. Ne3 {[%emt 0:00:22]}
Qh7 {[%emt 0:00:02]} 35. Rec1 {207} Qe4 {[%emt 0:00:04]} 36. Rc8+ {114} Rxc8 {
[%emt 0:00:02]} 37. Rxc8+ {[%emt 0:00:06]} Kh7 {[%emt 0:00:03]} 38. Qf3 {83}
Qxf3 {[%emt 0:00:35]} 39. gxf3 {[%emt 0:00:05]} Nxd4 {[%emt 0:00:05]} 40. Rc7 {
[%emt 0:00:00]} b5 {[%emt 0:00:00]} 41. Rxf7 {83} Nde6 {138} 42. Rd7 {[%emt 0:
00:57]} d4 {[%emt 0:00:39]} 43. Nc2 {131} d3 {[%emt 0:00:05]} 44. Ne1 {15 1-0 
(44) Harikrishna,P (2752)-Karjakin,S (2769) Baku 2016}) 8. Re1 {[%emt 0:00:19]}
Ba7 {[%emt 0:00:16]} 9. Bb3 {[%emt 0:00:07]} Re8 {[%emt 0:00:43]} 10. Nbd2 {262
} Be6 {[%emt 0:00:22]} 11. Nf1 {[%emt 0:00:42]} h6 {[%emt 0:00:41]} 12. Be3 {
365} Bxe3 {[%emt 0:00:26]} 13. Nxe3 {[%emt 0:00:08]} Qd7 {[%emt 0:00:20]} 14.
Nh2 {771} Bxb3 {497} 15. axb3 {168} Ne7 {235} 16. b4 {304} d5 {74} 17. Nhg4 {
732} Nxg4 {[%emt 0:00:12]} 18. Qxg4 {363} (18. Nxg4 Ng6 {is around equal.})
18... Rad8 {750} 19. exd5 {840} (19. Nf5 Nxf5 20. exf5 f6 $11) 19... Qxg4 {
[%emt 0:00:18]} 20. hxg4 {290} Nxd5 {[%emt 0:00:14]} 21. Nxd5 {109} Rxd5 {
7 Black experienced absolutely no issues in equalising the game.} 22. d4 {
[%emt 0:00:15]} Kf8 {[%emt 0:00:20]} 23. dxe5 {112} Rexe5 {[%emt 0:00:28]} 24.
Rxe5 {[%emt 0:00:45]} Rxe5 {[%emt 0:00:06]} 25. Kf1 {[%emt 0:00:59]} Ke7 {
[%emt 0:00:11]} 26. Rd1 {[%emt 0:00:06]} h5 {[%emt 0:00:45]} 27. gxh5 {[%emt 0:
00:08]} Rxh5 {[%emt 0:00:03]} 28. Ke2 {[%emt 0:00:09]} Re5+ {[%emt 0:00:06]}
29. Kf1 {[%emt 0:00:30]} Rh5 {[%emt 0:00:17]} 30. Ke2 {[%emt 0:00:04]} Re5+ {
[%emt 0:00:04]} 1/2-1/2

[Event "Rotterdam"]
[Site "Rotterdam"]
[Date "2017.01.19"]
[Round "5"]
[White "Karjakin, Sergey"]
[Black "Adhiban, Baskaran"]
[Result "0-1"]
[ECO "C11"]
[WhiteElo "2785"]
[BlackElo "2653"]
[Annotator "Sagar Shah"]
[PlyCount "62"]
[EventDate "2017.??.??"]
[EventType "tourn"]
[EventCountry "NED"]
[SourceTitle "playchess.com"]
[Source "ChessBase"]
[TimeControl "40/6000+30:20/3000+30:900+30"]

1. e4 {[%emt 0:00:00]} e6 {6 This is the first time in his career that Adhiban
has played the French Defence? What motivated him to play this with black?
Your guess is as good as mine!} 2. d4 {[%emt 0:00:00]} d5 {[%emt 0:00:01]} 3.
Nc3 {[%emt 0:00:50]} Nf6 {[%emt 0:00:05]} 4. e5 {[%emt 0:00:05]} Nfd7 {[%emt 0:
00:04]} 5. f4 {[%emt 0:00:05]} c5 {[%emt 0:00:05]} 6. Nf3 {[%emt 0:00:05]} Nc6
{[%emt 0:00:04]} 7. Be3 {[%emt 0:00:06]} Be7 {[%emt 0:00:09]} 8. Qd2 {[%emt 0:
00:56]} a6 {[%emt 0:00:05]} 9. a3 {394} O-O {[%emt 0:00:21]} 10. dxc5 {[%emt 0:
00:31]} Nxc5 {[%emt 0:00:04]} 11. Qf2 {9 All of this has been played before
and has been seen in top level encounters like Kramnik-Meier, Ragger-Bluebaum,
Sethuraman-Korobov and Salem-Svane. The main moves for Black have been either
b6 or Qa5. Adhiban unleashes a novelty.} Nd7 $5 $146 {4 The credit for finding
this move was given by Adhiban to his coach, most likely K. Visweswaran.} 12.
Nd4 {632 Karjakin thinks for 10 minutes and goes for the most critical line.}
Nxd4 {[%emt 0:00:07]} 13. Bxd4 {[%emt 0:00:04]} f6 {4 Adhiban is still in his
preparation. Facing Adhiban when he is well prepared ccan be an unnerving
experience. He moves very quickly and can often unsettle you. But this is
common for players at the level of Karjakin. They are used to this.} 14. exf6 {
[%emt 0:00:48]} Bxf6 {[%emt 0:00:03]} 15. Bxf6 {308} (15. O-O-O $5 b5 $13 (
15... e5 16. Bc5 $1 $14)) 15... Qxf6 {[%emt 0:00:02]} 16. g3 {[%emt 0:00:08]}
g5 $1 {5 The f4 pawn can no longer be held. That being said, no one would like
to weaken his kingside with a move like g5 in an opposite side castling
situation.} 17. O-O-O {242} gxf4 {[%emt 0:00:04]} 18. Kb1 {245 This move
surprised Adhiban.} (18. Rd4 {should have been preferred by Karjakin.} f3 19.
Rf4 Qh6 20. Qxf3 e5 (20... Rxf4 21. gxf4 $16) 21. Qg4+ Kh8 22. Qh4 {The only
way not to lose a rook.} Qxh4 23. Rxh4 Nf6 24. Bg2 Be6 {Black looks fine with
the strong central pawns, but after} 25. Re1 e4 26. Bh3 $14 {White should have
a small edge.}) 18... f3 {488} 19. g4 {491} (19. Rd4 Qg7 20. Bh3 Nf6 21. Qxf3
e5 22. Rh4 Bxh3 23. Rxh3 Ne4 24. Qe2 Nxc3+ (24... Nf2 25. Rh4 $1 Nxh1 26. Rg4
$18) 25. bxc3 e4 $13) 19... Ne5 {373} 20. g5 {67} Qg7 {508} 21. g6 {573
Karjakin plays with great energy. He realizes that he must open the position
of the black king. He is a pawn down already, so he throws another pawn into
the fire. Objectively it might not be a great idea, but as Adhiban says,
practically it was quite a challenging one to face.} hxg6 $1 {424} (21... Nxg6
22. Bd3 {Followed by Rg1 and h4 should give White good attacking chances.}) 22.
Bd3 $6 {786 Once again, not the most challenging move, as this bishop can be
chopped off by the knight anytime.} (22. Rg1 Bd7 23. h4 Rf5 {Black maintains
control.}) (22. h4 Bd7 23. Bh3 {This might be the most complicated way to play
the position. But still Black has the advantage is beyond any doubt.}) 22...
Bd7 {156 Once Adhiban made this move, he was happy because the bishop could
always drop back to e8 and defend the g6 pawn.} 23. Rdg1 {[%emt 0:00:56]} Nxd3
{234} 24. cxd3 {[%emt 0:00:16]} Rf5 {[%emt 0:00:19]} 25. Rg4 {104} Raf8 {
[%emt 0:00:45]} 26. Rhg1 {138} Be8 $19 {265 The bishop defends the g6 pawn and
the rest is not too difficult.} 27. Nd1 {373} Rh5 $6 {1254} (27... Qf6 28. Ne3
Rf4 29. Rxf4 Qxf4 $19 {was easily winning.}) 28. h4 {309} Re5 {543} 29. Ne3 {
458} Bb5 $1 {228} 30. Rd4 {170} (30. Kc2 Rc8+ 31. Kb3 Bxd3 32. Qxf3 Be4 $19) (
30. Nc4 Bxc4 31. dxc4 Rf6 $19) 30... Re4 $5 {217} 31. Rxg6 $2 {423} Bxd3+ $1 {
20 This clear shot ends the game. Karjakin is known as a Master of Defence.
The fact that Adhiban could beat him without any glitches makes it a highly
commendable victory.} (31... Qxg6 {is also winning after} 32. dxe4 dxe4 $19) (
31... Bxd3+ 32. Rxd3 Qxg6 $19) 0-1

[Event "79th Tata Steel Chess 2017-Masters"]
[Site "Wijk aan Zee"]
[Date "2017.01.20"]
[Round "6"]
[White "Adhiban, Baskaran"]
[Black "So, Wesley"]
[Result "1/2-1/2"]
[WhiteElo "2653"]
[BlackElo "2808"]
[Annotator "Sagar Shah"]
[PlyCount "77"]
[EventDate "2017.??.??"]
[TimeControl "60"]

1. e4 {[%emt 0:00:00]} e5 {[%emt 0:00:11]} 2. f4 $5 {0 When was the last time
someone played the King's Gambit against Wesley So?! Well, the databases
reveal that this was the first time! Adhiban has seriously made some very
interesting choices at this event. Rather than going deep into some line, he
has just changed the battlefield in order to make it more even.} exf4 {[%emt 0:
00:44]} 3. Bc4 {[%emt 0:00:00]} (3. Nf3 {is by far the most popular move in
the position.}) 3... d5 {405 Played after seven minutes of thought. Wesley
would have definitely prepared something against the King's Gambit but to
remember all the analysis on the spot is not an easy task.} (3... Qh4+ 4. Kf1 {
The tempo that you will gain with Nf3 is worth losing your castling rights!})
4. Bxd5 {[%emt 0:00:00]} Nf6 {[%emt 0:00:08]} 5. Nc3 {[%emt 0:00:00]} Nxd5 {566
} 6. Nxd5 {[%emt 0:00:00]} Bd6 {[%emt 0:00:08]} (6... g5 {is another possible
move, but Wesley likes to go for simple developing moves rather than clinging
on to pawns with moves like g5.}) 7. Nf3 {[%emt 0:00:00]} O-O {[%emt 0:00:17]}
8. d4 {0 Adhiban was still blitzing his moves.} Re8 {905 15 minutes of
thought! The opening is already a success for the Indian player.} 9. e5 {
[%emt 0:00:04]} c6 {[%emt 0:00:07]} (9... f6 10. Bxf4 $14) 10. Nxf4 {54 White
has not only recovered his pawn, but is a pawn up and has a clearly preferable
position. Getting such a position against Wesley after 10 moves in any major
well-known opening line might be almost impossible.} f6 {[%emt 0:00:38]} 11.
Nd3 {712 The first move where Adhiban had to think. 12 minutes for 11.Nd3.} (
11. O-O $5 fxe5 12. dxe5 Bc5+ 13. Kh1 Qxd1 14. Rxd1 Bf5 $44) (11. Qd3 $5 fxe5
12. dxe5 Bc7 13. Qb3+ Kh8 14. O-O $16) 11... fxe5 {1654} 12. dxe5 {[%emt 0:00:
02]} Qb6 {249} 13. Qe2 {901} Bf5 {[%emt 0:00:12]} 14. Be3 {197} Qa5+ {[%emt 0:
00:25]} 15. c3 {497} Bc7 {901} 16. O-O {196} Qa6 {14 White is a pawn up, but
Black's bishop pair and the pretty weak e5 pawn gives Black decent
compensation.} (16... Bxd3 17. Qxd3 Bxe5 18. Ng5 $1 g6 19. Qc4+ Qd5 20. Qh4 $18
) 17. Rad1 {244} Nd7 {[%emt 0:00:07]} (17... Qxa2 18. Ng5 Bg6 19. Nf4 $18) 18.
Bd4 {1568 Adhiban played after 26 minutes, but this move lets Black equalize
with ease.} (18. b3 $5 Bxd3 19. Rxd3 Nxe5 20. Nxe5 Bxe5 21. c4 $14) 18... c5 $1
{100} 19. Bf2 {[%emt 0:00:23]} Nxe5 {177} 20. Nfxe5 {[%emt 0:00:23]} Bxe5 {284}
21. Qf3 {[%emt 0:00:18]} Be4 {[%emt 0:00:27]} 22. Qh3 {[%emt 0:00:35]} Bxd3 {
166} 23. Qxd3 {115 The position is just even now.} Qxa2 {[%emt 0:00:43]} 24.
Bxc5 {621} Qxb2 {[%emt 0:00:40]} 25. Bxa7 $1 {239} Bxc3 {357} (25... Rxa7 26.
Qd5+ Kh8 27. Qxe5 $11) 26. Bf2 {525} Be5 {251} 27. Rb1 {86} Qa2 {[%emt 0:00:05]
} 28. Rxb7 {9 The pawns are exchanged and the game ends in a draw.} Rf8 {
[%emt 0:00:33]} 29. Qb3+ {173} Qxb3 {[%emt 0:00:47]} 30. Rxb3 {[%emt 0:00:04]}
Ra2 {[%emt 0:00:03]} 31. Rf3 {184} Rxf3 {[%emt 0:00:06]} 32. gxf3 {[%emt 0:00:
05]} Kf7 {[%emt 0:00:04]} 33. Bg3 {[%emt 0:00:45]} Bd4+ {[%emt 0:00:05]} 34.
Kh1 {[%emt 0:00:14]} Rd2 {[%emt 0:00:30]} 35. Bf4 {[%emt 0:00:43]} Re2 {
[%emt 0:00:04]} 36. Rd1 {[%emt 0:00:08]} Bc3 {[%emt 0:00:39]} 37. Rd3 {[%emt 0:
00:11]} Bb4 {[%emt 0:00:32]} 38. Rd4 {135} Bc5 {[%emt 0:00:11]} 39. Rd2 {
[%emt 0:00:03]} 1/2-1/2

[Event "79th Tata Steel Chess 2017-Masters"]
[Site "Wijk aan Zee"]
[Date "2017.01.20"]
[Round "6"]
[White "Harikrishna, Pentala"]
[Black "Wojtaszek, Radoslaw"]
[Result "1/2-1/2"]
[WhiteElo "2766"]
[BlackElo "2750"]
[Annotator "Sagar Shah"]
[PlyCount "133"]
[EventDate "2017.??.??"]
[TimeControl "60"]

1. e4 {[%emt 0:00:00]} e5 {[%emt 0:00:05]} 2. Nf3 {[%emt 0:00:00]} Nc6 {
[%emt 0:00:04]} 3. Bb5 {[%emt 0:00:06]} a6 {[%emt 0:00:06]} 4. Ba4 {[%emt 0:00:
06]} Nf6 {[%emt 0:00:05]} 5. O-O {[%emt 0:00:53]} Be7 {[%emt 0:00:09]} 6. Re1 {
[%emt 0:00:20]} b5 {[%emt 0:00:06]} 7. Bb3 {[%emt 0:00:03]} O-O {[%emt 0:00:07]
} 8. a3 {158} d6 {119} 9. h3 {142 Hari likes to play this move h3 in both the
Ruy Lopez as well as the Guioco Piano.} Na5 {176} 10. Ba2 {63} c5 {[%emt 0:00:
06]} 11. Nc3 {260} Nc6 {476} 12. d3 {524} h6 {290} 13. Bd2 {588} Rb8 {845} 14.
Rb1 {754} a5 {433} 15. a4 {168} b4 {[%emt 0:00:29]} 16. Nb5 {245} Re8 {275} 17.
c3 {335} Bf8 {126} 18. Qc2 {89} Qb6 {349} 19. Be3 {93} Na7 {978} 20. Bc4 {745}
Ba6 $6 {418} 21. Nc7 $1 {373 Harikrishna alert as ever picks up the light
squared bishop.} Qxc7 {288} 22. Bxa6 $14 {6 With the light squared bishop in
his bag, White is clearly for choice.} d5 {123} 23. cxb4 {134} (23. exd5 Nxd5
24. Bc4 Nxe3 25. Rxe3 $14) 23... Nc6 {190} 24. Bb5 {172} (24. Bd2 $14) 24...
Nxb4 {[%emt 0:00:57]} 25. Qd1 {113} Red8 {69} 26. exd5 {[%emt 0:00:19]} Nfxd5 {
[%emt 0:00:07]} (26... Rxd5 27. Bc4 $14) 27. Bd2 {70} Bd6 {139} 28. Qe2 {189}
Nf4 {263} 29. Qe4 $16 {239 White is clearly better.} Nc2 {108} 30. Rec1 {69} (
30. Nxe5 $1 Nxe1 (30... Bxe5 31. Qxe5 Qxe5 32. Rxe5 Nxd3 33. Bxd3 Rxd3 34. Bxa5
$16) 31. Bxf4 $18) 30... Nb4 {[%emt 0:00:05]} 31. g3 {359} Ne6 {99} (31...
Nxh3+ 32. Kg2 Ng5 33. Nxg5 hxg5 34. Rh1 g6 35. Bxg5 $18) 32. Bxb4 {75} axb4 {
[%emt 0:00:04]} 33. h4 {[%emt 0:00:48]} Rf8 {472} 34. Re1 {67} Qd8 {251} 35.
Kg2 {100} (35. Nxe5 Bxe5 36. Qxe5 Nd4 $44) 35... Nc7 {182} 36. Bc4 {[%emt 0:00:
21]} Re8 {[%emt 0:00:03]} 37. Qf5 {165} Qf6 {[%emt 0:00:29]} 38. Qh5 {205} (38.
Qxf6 gxf6 39. Ra1 $16 {White has a clear advantage here because of the strong
light squared bishop and the protected a-passed pawn.}) 38... Ne6 {100} 39.
Nxe5 {87} g6 {[%emt 0:00:48]} 40. Nxg6 {[%emt 0:00:00]} (40. Ng4 $1 Qd4 41. Qd5
Qxg4 42. Qxd6 $18) (40. Qxh6 Bxe5 $17) 40... Kh7 $1 {166} 41. Qd5 {1033} (41.
Ne5 Ng7 42. Qxf7 Bxe5 43. Qxf6 Bxf6 $11) 41... Nc7 {573} 42. Qxf7+ {[%emt 0:00:
42]} Qxf7 {[%emt 0:00:04]} 43. Bxf7 {[%emt 0:00:07]} Rxe1 {[%emt 0:00:09]} 44.
Rxe1 {[%emt 0:00:05]} Kg7 {[%emt 0:00:19]} 45. Ne5 {355} Bxe5 {[%emt 0:00:04]}
46. Rxe5 {[%emt 0:00:07]} Kxf7 {[%emt 0:00:02]} 47. Rxc5 $16 {10 Although
White is better it is not so easy to convert this into a full point.} Ne6 {
[%emt 0:00:15]} 48. Rc4 {362} b3 {762} 49. Kf3 {277} Ke7 {[%emt 0:00:36]} 50.
d4 {331} Kd6 {[%emt 0:00:23]} 51. Ke4 {[%emt 0:00:07]} Nc7 {[%emt 0:00:59]} 52.
Rc5 {247} Rb4 {291} 53. Rh5 {169} Rxa4 {231} 54. Rxh6+ {[%emt 0:00:22]} Ne6 {93
} 55. f4 {177} Rxd4+ {102} 56. Ke3 {[%emt 0:00:51]} Rd5 {[%emt 0:00:04]} 57. g4
{[%emt 0:00:50]} Ke7 {[%emt 0:00:34]} 58. f5 {279} Re5+ {110} 59. Kd3 {123}
Nf4+ {[%emt 0:00:06]} 60. Kc4 {[%emt 0:00:00]} Re4+ {118} 61. Kxb3 {147} Ng2 {
[%emt 0:00:05]} 62. g5 {625} Nxh4 {[%emt 0:00:34]} 63. Rh7+ {[%emt 0:00:05]}
Kf8 {138} 64. f6 {75} Rg4 {[%emt 0:00:41]} 65. Rh8+ {104} Kf7 {[%emt 0:00:05]}
66. Rh7+ {[%emt 0:00:35]} Kf8 {[%emt 0:00:05]} 67. Rh8+ {[%emt 0:00:09]}
1/2-1/2

[Event "79th Tata Steel Chess 2017-Masters"]
[Site "Wijk aan Zee"]
[Date "2017.01.21"]
[Round "7"]
[White "So, Wesley"]
[Black "Eljanov, Pavel"]
[Result "1/2-1/2"]
[WhiteElo "2808"]
[BlackElo "2755"]
[PlyCount "75"]
[EventDate "2017.??.??"]
[TimeControl "60"]

1. e4 {[%emt 0:00:00]} e5 {[%emt 0:00:00]} 2. Nf3 {[%emt 0:00:00]} Nc6 {
[%emt 0:00:00]} 3. Bc4 {[%emt 0:00:00]} Bc5 {[%emt 0:00:00]} 4. O-O {[%emt 0:
00:00]} Nf6 {[%emt 0:00:00]} 5. d3 {[%emt 0:00:00]} d6 {[%emt 0:00:00]} 6. c3 {
[%emt 0:00:00]} a6 {[%emt 0:00:00]} 7. a4 {[%emt 0:00:00]} Ba7 {[%emt 0:00:00]}
8. Na3 {[%emt 0:00:00]} h6 {[%emt 0:00:00]} 9. Nc2 {[%emt 0:00:00]} Qe7 {
[%emt 0:00:00]} 10. Be3 {[%emt 0:00:00]} Be6 {[%emt 0:00:00]} 11. Bxe6 {
[%emt 0:00:00]} Qxe6 {[%emt 0:00:00]} 12. Bxa7 {[%emt 0:00:00]} Rxa7 {[%emt 0:
00:00]} 13. d4 {[%emt 0:00:00]} Ne7 {[%emt 0:00:00]} 14. Nd2 {[%emt 0:00:00]}
O-O {[%emt 0:00:00]} 15. Qe2 {[%emt 0:00:00]} Raa8 {[%emt 0:00:00]} 16. g3 {
[%emt 0:00:00]} Rfe8 {[%emt 0:00:00]} 17. a5 {[%emt 0:00:00]} Rac8 {[%emt 0:00:
00]} 18. d5 {[%emt 0:00:00]} Qd7 {[%emt 0:00:00]} 19. Ne3 {[%emt 0:00:00]} Nh7
{[%emt 0:00:00]} 20. Ra3 {[%emt 0:00:00]} Rf8 {[%emt 0:00:00]} 21. Rb3 {
[%emt 0:00:00]} Rb8 {[%emt 0:00:00]} 22. Ra1 {[%emt 0:00:00]} f5 {[%emt 0:00:
00]} 23. exf5 {[%emt 0:00:00]} Nxf5 {[%emt 0:00:00]} 24. Qg4 {[%emt 0:00:00]}
h5 {[%emt 0:00:00]} 25. Qxh5 {[%emt 0:00:00]} Nxe3 {[%emt 0:00:00]} 26. fxe3 {
[%emt 0:00:00]} Rf5 {[%emt 0:00:00]} 27. Qh4 {[%emt 0:00:00] Although he took
it sportingly, White missed a chance to obtain a decisive advantage three
straight moves with the same shot.} Ng5 {[%emt 0:00:00]} (27... Rbf8 $1 28. g4
R5f6 29. c4 Qe7 {threatening Rf1+ with a discovered attack on the queen.} 30.
Qg3 Qf7 {and Black's attack becomes unstoppable.}) 28. Rb4 {[%emt 0:00:00]} e4
{[%emt 0:00:00]} (28... Rbf8 $1 29. Rg4 Nh7 30. c4 Qf7 31. Qh3 Ng5 {and again
Black's advantage should be decisive.}) 29. Kg2 {[%emt 0:00:00]} Qf7 {[%emt 0:
00:00]} ({This was the most definitive as th king exposed on g2 means the Rf2+
threat has that much more bite.} 29... Rbf8 $1 30. Nxe4 Nf3 31. Qh3 Qe8 32. Qg4
Qf7 {and Black is winning.}) 30. Nxe4 {[%emt 0:00:00]} Qxd5 {[%emt 0:00:00]} (
30... Nf3 {was the last chance to keep the edge.} 31. Qh3 Qxd5) 31. Rd4 {
[%emt 0:00:00]} Nf3 {[%emt 0:00:00]} 32. Nf6+ {[%emt 0:00:00]} Rxf6 {[%emt 0:
00:00]} 33. Rxd5 {[%emt 0:00:00]} Nxh4+ {[%emt 0:00:00]} 34. gxh4 {[%emt 0:00:
00]} Rbf8 {[%emt 0:00:00]} 35. Rd2 {[%emt 0:00:00]} Rg6+ {[%emt 0:00:00]} 36.
Kh1 {[%emt 0:00:00]} Rf3 {[%emt 0:00:00]} 37. Re1 {[%emt 0:00:00]} Re6 {
[%emt 0:00:00]} 38. Rd4 {[%emt 0:00:00]} 1/2-1/2